fUST/lending_fUST_20241125
["ID","MTS","AMOUNT","RATE_DAILY","PERIOD"]
[343247475,1732529467401,-660.34,0.00024892,2]
[343247476,1732529467410,-708.31,0.00024892,2]
[343247477,1732529467420,-647.65,0.00024892,2]
[343247478,1732529467430,-500.0,0.00024892,2]
[343247479,1732529467439,-537.15,0.00024892,2]
[343247480,1732529467449,-742.14,0.00024892,2]
[343247481,1732529467459,-252.24,0.00024892,2]
[343247482,1732529467468,-500.0,0.00024892,2]
[343247483,1732529467477,-372.64365689,0.00024892,2]
[343247484,1732529467487,-672.79,0.00024892,2]
[343247485,1732529467496,-1437.99,0.00024892,2]
[343247486,1732529467506,-500.0,0.00024892,2]
[343247487,1732529467516,-500.0,0.00024892,2]
[343247488,1732529467526,-814.29,0.00024892,2]
[343247489,1732529467535,-472.43,0.00024898,2]
[343247490,1732529467545,-500.0,0.00024898,2]
[343247491,1732529467555,-500.0,0.00024898,2]
[343247492,1732529467565,-151.0,0.000249,8]
[343247493,1732529467575,-546.46508569,0.00024906,2]
[343247494,1732529467585,-672.66,0.00024931,2]
[343247495,1732529467594,-500.0,0.00024931,2]
[343247496,1732529467604,-561.75,0.00024931,2]
[343247497,1732529467614,-500.0,0.0002494,7]
[343247498,1732529467623,-303.33363667,0.00025,2]
[343247499,1732529467632,-350.0,0.00025012,2]
[343247500,1732529467642,-3300.11,0.00025043,2]
[343247501,1732529467652,-943.55,0.00025043,2]
[343247502,1732529467662,-700.59,0.00025043,2]
[343247503,1732529467671,-813.75,0.00025114,2]
[343247504,1732529467680,-650.36,0.00025114,2]
[343247505,1732529467690,-151.0,0.00025117,7]
[343247506,1732529467700,-151.0,0.00025117,7]
[343247507,1732529467710,-660.34,0.00025166,2]
[343247508,1732529467720,-708.31,0.00025166,2]
[343247509,1732529467729,-647.65,0.00025166,2]
[343247510,1732529467739,-500.0,0.00025166,2]
[343247511,1732529467749,-537.15,0.00025166,2]
[343247512,1732529467758,-742.14,0.00025166,2]
[343247513,1732529467768,-500.0,0.00025166,2]
[343247514,1732529467781,-672.79,0.00025166,2]
[343247515,1732529467794,-1437.99,0.00025166,2]
[343247516,1732529467804,-500.0,0.00025166,2]
[343247517,1732529467815,-500.0,0.00025166,2]
[343247518,1732529467826,-814.29,0.00025166,2]
[343247519,1732529467837,-500.0,0.00025172,2]
[343247520,1732529467846,-500.0,0.00025172,2]
[343247521,1732529467856,-151.0,0.000252,10]
[343247522,1732529467869,-672.66,0.00025205,2]
[343247523,1732529467879,-500.0,0.00025205,2]
[343247524,1732529467888,-303.33363667,0.0002525,2]
[343247525,1732529467898,-3300.11,0.00025317,2]
[343247526,1732529467907,-943.55,0.00025317,2]
[343247527,1732529467917,-700.59,0.00025317,2]
[343247528,1732529467926,-813.75,0.00025388,2]
[343247529,1732529467935,-650.36,0.00025388,2]
[343247530,1732529467945,-660.34,0.0002544,2]
[343247531,1732529467954,-708.31,0.0002544,2]
[343247532,1732529467963,-647.65,0.0002544,2]
[343247533,1732529467972,-177.47133179,0.0002544,2]
[343247534,1732529467982,-537.15,0.0002544,2]
[343247535,1732529467991,-742.14,0.0002544,2]
[343247536,1732529468000,-500.0,0.0002544,2]
[343247537,1732529468009,-672.79,0.0002544,2]
[343247538,1732529468019,-1437.99,0.0002544,2]
[343247539,1732529468028,-160.04,0.0002544,2]
[343247540,1732529468038,-500.0,0.0002544,2]
[343247541,1732529468047,-814.29,0.0002544,2]
[343247542,1732529468057,-410.32,0.00025446,2]
[343247543,1732529468066,-500.0,0.00025446,2]
[343247544,1732529468075,-672.66,0.00025479,2]
[343247545,1732529468086,-500.0,0.00025479,2]
[343247546,1732529468098,-303.33363667,0.000255,2]
[343247547,1732529468107,-201.85511785,0.0002556,2]
[343247548,1732529468118,-3300.2519,0.00025591,2]
[343247549,1732529468128,-943.65,0.00025591,2]
[343247550,1732529468139,-700.73,0.00025591,2]
[343247551,1732529468149,-151.0,0.000256,11]
[343247552,1732529468159,-813.75,0.00025662,2]
[343247553,1732529468168,-650.36,0.00025662,2]
[343247554,1732529468179,-175.290341,0.00025665,7]
[343247555,1732529468190,-519.539038,0.00025665,7]
[343247556,1732529468199,-175.290341,0.00025665,7]
[343247557,1732529468208,-519.539038,0.00025665,7]
[343247558,1732529468218,-410.635507,0.00025665,7]
[343247559,1732529468227,-276.190362,0.00025665,7]
[343247560,1732529468237,-276.190362,0.00025665,7]
[343247561,1732529468301,-151.0,0.00025665,7]
[343247562,1732529468311,-151.0,0.00025665,7]
[343247563,1732529468321,-151.0,0.00025665,7]
[343247564,1732529468330,-151.0,0.00025665,7]
[343247565,1732529468340,-151.0,0.00025665,7]
[343247566,1732529468349,-151.0,0.00025665,7]
[343247567,1732529468358,-210.763376,0.00025665,7]
[343247568,1732529468369,-210.763376,0.00025665,7]
[343247569,1732529468379,-660.34,0.00025714,2]
[343247570,1732529468388,-708.31,0.00025714,2]
[343247571,1732529468398,-647.65,0.00025714,2]
[343247572,1732529468409,-537.15,0.00025714,2]
[343247573,1732529468419,-742.14,0.00025714,2]
[343247574,1732529468428,-312.38,0.00025714,2]
[343247575,1732529468438,-672.79,0.00025714,2]
[343247576,1732529468447,-1437.99,0.00025714,2]
[343247577,1732529468457,-500.0,0.00025714,2]
[343247578,1732529468467,-814.29,0.00025714,2]
[343247579,1732529468477,-500.0,0.0002572,2]
[343247580,1732529468486,-303.33363667,0.0002575,2]
[343247581,1732529468496,-672.66,0.00025753,2]
[343247582,1732529468506,-235.55,0.00025753,2]
[343247583,1732529468516,-546.46508569,0.00025756,2]
[343247584,1732529468526,-1152.0,0.00025812,2]
[343247585,1732529468536,-813.75,0.00025936,2]
[343247586,1732529468546,-650.36,0.00025936,2]
[343247587,1732529468556,-660.34,0.00025988,2]
[343247588,1732529468565,-708.31,0.00025988,2]
[343247589,1732529468575,-647.65,0.00025988,2]
[343247590,1732529468586,-537.15,0.00025988,2]
[343247591,1732529468595,-742.14,0.00025988,2]
[343247592,1732529468604,-672.79,0.00025988,2]
[343247593,1732529468616,-1437.99,0.00025988,2]
[343247594,1732529468626,-500.0,0.00025988,2]
[343247595,1732529468636,-814.29,0.00025988,2]
[343247596,1732529468646,-500.0,0.00025993,2]
[343247597,1732529468656,-303.33363667,0.00026,2]
[343247598,1732529468665,-672.66,0.00026027,2]
[343247599,1732529468676,-151.0,0.000262,15]
[343247600,1732529468686,-813.75,0.0002621,2]
[343247601,1732529468696,-650.36,0.0002621,2]
[343247602,1732529468706,-455.000455,0.0002625,4]
[343247603,1732529468716,-660.34,0.00026262,2]
[343247604,1732529468725,-708.31,0.00026262,2]
[343247605,1732529468735,-647.65,0.00026262,2]
[343247606,1732529468744,-537.15,0.00026262,2]
[343247607,1732529468754,-742.14,0.00026262,2]
[343247608,1732529468764,-672.79,0.00026262,2]
[343247609,1732529468773,-1437.99,0.00026262,2]
[343247610,1732529468783,-500.0,0.00026262,2]
[343247611,1732529468793,-814.29,0.00026262,2]
[343247612,1732529468803,-500.0,0.00026267,2]
[343247613,1732529468812,-151.0,0.00026301,7]
[343247614,1732529468822,-156.598087,0.00026301,7]
[343247615,1732529468833,-672.79415401,0.00026301,2]
[343247616,1732529468843,-1565.63424359,0.00026323,2]
[343247617,1732529468853,-500.0,0.00026469,2]
[343247618,1732529468865,-813.75,0.00026484,2]
[343247619,1732529468875,-650.36,0.00026484,2]
[343247620,1732529468885,-9430.6744199,0.00026497,2]
[343247621,1732529468895,-29913.15,0.000265,2]
[343247622,1732529468904,-151.0,0.000265,7]
[343247623,1732529468914,-593.809327,0.000265,7]
[343247624,1732529468924,-593.809327,0.000265,7]
[343247625,1732529468934,-455.000455,0.000265,4]
[343247626,1732529468943,-660.34,0.00026536,2]
[343247627,1732529468953,-708.31,0.00026536,2]
[343247628,1732529468962,-647.65,0.00026536,2]
[343247629,1732529468971,-537.15,0.00026536,2]
[343247630,1732529468980,-742.14,0.00026536,2]
[343247631,1732529468990,-672.79,0.00026536,2]
[343247632,1732529468999,-1437.99,0.00026536,2]
[343247633,1732529469009,-394.78,0.00026536,2]
[343247634,1732529469018,-814.29,0.00026536,2]
[343247635,1732529469028,-469.89,0.00026541,2]
[343247636,1732529469038,-152.212,0.00026552,2]
[343247637,1732529469048,-531.0,0.00026552,2]
[343247638,1732529469057,-1105.0,0.00026552,2]
[343247639,1732529469067,-2379.0,0.00026552,2]
[343247640,1732529469077,-500.0,0.00026584,7]
[343247641,1732529469087,-546.46508569,0.00026605,2]
[343247642,1732529469097,-336.28793937,0.00026624,2]
[343247643,1732529469110,-1152.0,0.00026688,2]
[343247644,1732529469123,-455.000455,0.0002675,4]
[343247645,1732529469132,-9430.6744199,0.00026756,2]
[343247646,1732529469142,-813.75,0.00026758,2]
[343247647,1732529469150,-650.36,0.00026758,2]
[343247648,1732529469160,-660.34,0.0002681,2]
[343247649,1732529469170,-708.31,0.0002681,2]
[343247650,1732529469179,-647.65,0.0002681,2]
[343247651,1732529469189,-537.15,0.0002681,2]
[343247652,1732529469199,-742.14,0.0002681,2]
[343247653,1732529469209,-672.79,0.0002681,2]
[343247654,1732529469219,-1437.99,0.0002681,2]
[343247655,1732529469228,-814.29,0.0002681,2]
[343247656,1732529469237,-151.0,0.000269,17]
[343247657,1732529469246,-725.10474,0.00027,15]
[343247658,1732529469256,-478.6514083,0.00027,4]
[343247659,1732529469265,-160.0,0.00027,2]
[343247660,1732529469275,-1000.0,0.00027017,2]
[343247661,1732529469286,-813.75,0.00027032,2]
[343247662,1732529469296,-650.36,0.00027032,2]
[343247663,1732529469306,-9430.6744199,0.00027053,2]
[343247664,1732529469315,-660.45,0.00027084,2]
[343247665,1732529469326,-708.48,0.00027084,2]
[343247666,1732529469336,-647.84,0.00027084,2]
[343247667,1732529469347,-537.30160956,0.00027084,2]
[343247668,1732529469358,-742.14773779,0.00027084,2]
[343247669,1732529469375,-672.95,0.00027084,2]
[343247670,1732529469386,-1438.09,0.00027084,2]
[343247671,1732529469604,-814.49,0.00027084,2]
[343247672,1732529469617,-181.833896,0.00027244,7]
[343247673,1732529469629,-9430.6744199,0.00027253,2]
[343247674,1732529469639,-813.75,0.00027306,2]
[343247675,1732529469705,-650.36,0.00027306,2]
[343247676,1732529469716,-1226.791513,0.00027344,2]
[343247677,1732529469727,-500.0,0.00027397,2]
[343247678,1732529469737,-517.57690057,0.00027397,2]
[343247679,1732529469747,-151.0,0.00027397,7]
[343247680,1732529469758,-151.0,0.00027397,7]
[343247681,1732529469768,-546.46508569,0.00027454,2]
[343247682,1732529469778,-1440.55,0.000275,2]
[343247683,1732529469788,-9430.6744203,0.00027548,2]
[343247684,1732529469799,-813.75,0.0002758,2]
[343247685,1732529469808,-650.36,0.0002758,2]
[343247686,1732529469819,-175.290341,0.00027584,7]
[343247687,1732529469829,-519.539038,0.00027584,7]
[343247688,1732529469839,-175.290341,0.00027584,7]
[343247689,1732529469850,-519.539038,0.00027584,7]
[343247690,1732529469859,-410.635507,0.00027584,7]
[343247691,1732529469872,-151.0,0.00027584,7]
[343247692,1732529469882,-276.190362,0.00027584,7]
[343247693,1732529469892,-276.190362,0.00027584,7]
[343247694,1732529469902,-151.0,0.00027584,7]
[343247695,1732529469912,-151.409746,0.00027584,7]
[343247696,1732529469922,-151.0,0.00027584,7]
[343247697,1732529469932,-593.809327,0.00027584,7]
[343247698,1732529469943,-151.0,0.00027584,7]
[343247699,1732529469952,-593.809327,0.00027584,7]
[343247700,1732529469961,-151.0,0.00027584,7]
[343247701,1732529469971,-151.0,0.00027584,7]
[343247702,1732529469980,-151.0,0.00027584,7]
[343247703,1732529469989,-151.0,0.00027584,7]
[343247704,1732529469999,-210.763376,0.00027584,7]
[343247705,1732529470008,-210.763376,0.00027584,7]
[343247706,1732529470017,-151.0,0.00027584,7]
[343247707,1732529470026,-151.0,0.00027584,7]
[343247708,1732529470035,-151.0,0.00027584,7]
[343247709,1732529470045,-285.553956,0.00027584,7]
[343247710,1732529470055,-250000.0,0.00027584,2]
[343247711,1732529470064,-300.0,0.000277,2]
[343247712,1732529470072,-1565.63424359,0.00027737,2]
[343247713,1732529470079,-160.0,0.00027746,5]
[343247714,1732529470087,-151.0,0.00027748,7]
[343247715,1732529470094,-370.0,0.00027789,2]
[343247716,1732529470105,-813.94582244,0.00027853,2]
[343247717,1732529470111,-650.5,0.00027853,2]
[343247718,1732529470121,-330.0,0.00027858,2]
[343247719,1732529470129,-311.31439697,0.00027955,2]
[343247720,1732529470137,-152.638425,0.00027958,7]
[343247721,1732529470144,-3000.0,0.00028,2]
[343247722,1732529470154,-155.0,0.00028,120]
[343247723,1732529470163,-500.76296023,0.00028,2]
[343247724,1732529470174,-500.15,0.00028,3]
[343247725,1732529470190,-3000.0,0.0002801,2]
[343247726,1732529470200,-1000.87814142,0.00028019,5]
[343247727,1732529470211,-3000.0,0.0002802,2]
[343247728,1732529470221,-3000.0,0.0002803,2]
[343247729,1732529470231,-3000.0,0.0002804,2]
[343247730,1732529470240,-3000.0,0.0002805,2]
[343247731,1732529470249,-3000.0,0.0002806,2]
[343247732,1732529470259,-3000.0,0.0002807,2]
[343247733,1732529470268,-568.5,0.00028077,15]
[343247734,1732529470278,-3000.0,0.0002808,2]
[343247735,1732529470287,-3000.0,0.0002809,2]
[343247736,1732529470297,-151.0,0.0002809,7]
[343247737,1732529470306,-3000.0,0.000281,2]
[343247738,1732529470315,-3000.0,0.0002811,2]
[343247739,1732529470325,-3000.0,0.0002812,2]
[343247740,1732529470335,-5097.380968,0.0002813,2]
[343247741,1732529470346,-332.0,0.00028157,2]
[343247742,1732529470355,-29913.15,0.000282,2]
[343247743,1732529470367,-500.0,0.00028228,7]
[343247744,1732529470377,-546.46508569,0.00028303,2]
[343247745,1732529470387,-2500.0,0.00028375,3]
[343247746,1732529470398,-2381.27831113,0.00028375,3]
[343247747,1732529470408,-1119.27220243,0.00028384,3]
[343247748,1732529470419,-1076.04,0.000284,2]
[343247749,1732529470429,-370.0,0.00028417,2]
[343247750,1732529470440,-151.0,0.00028433,7]
[343247751,1732529470449,-167.15,0.000285,31]
[343247752,1732529470459,-167.15,0.000285,31]
[343247753,1732529470469,-167.15,0.000285,31]
[343247754,1732529470479,-167.15,0.000285,31]
[343247755,1732529470490,-167.15,0.000285,31]
[343247756,1732529470500,-167.15,0.000285,31]
[343247757,1732529470510,-167.15,0.000285,31]
[343247758,1732529470520,-616.0,0.000286,2]
[343247759,1732529470530,-500.0,0.000286,27]
[343247760,1732529470540,-216.0,0.0002868,23]
[343247761,1732529470549,-300.0,0.000287,2]
[343247762,1732529470559,-151.0,0.00028705,7]
[343247763,1732529470568,-151.0,0.00028705,7]
[343247764,1732529470578,-8752.4969241,0.00028705,17]
[343247765,1732529470587,-5000.0,0.00028705,16]
[343247766,1732529470597,-5000.0,0.00028705,18]
[343247767,1732529470606,-5000.0,0.00028705,17]
[343247768,1732529470617,-160.0,0.00028743,6]
[343247769,1732529470627,-264.55928869,0.00028743,5]
[343247770,1732529470637,-500.0,0.00028767,4]
[343247771,1732529470648,-160.0,0.00028767,2]
[343247772,1732529470658,-2299.52272252,0.00028774,2]
[343247773,1732529470668,-151.0,0.00028775,7]
[343247774,1732529470678,-300.0,0.00028776,10]
[343247775,1732529470687,-500.0,0.00028776,10]
[343247776,1732529470697,-500.0,0.00028776,10]
[343247777,1732529470706,-500.0,0.00028776,10]
[343247778,1732529470716,-500.0,0.00028776,10]
[343247779,1732529470773,-150.7263664,0.00028776,10]
[343247780,1732529470788,-500.0,0.00028776,10]
[343247781,1732529470798,-164.57406069,0.000288,7]
[343247782,1732529470808,-2554.64540046,0.000288,2]
[343247783,1732529470817,-151.0,0.000288,7]
[343247784,1732529470827,-1001.13639183,0.00028805,5]
[343247785,1732529470836,-301.112233,0.000289,13]
[343247786,1732529470846,-212.7413024,0.00028986,30]
[343247787,1732529470855,-153.0,0.00028986,30]
[343247788,1732529470866,-370.0,0.00028997,2]
[343247789,1732529470875,-151.0,0.00028998,7]
[343247790,1732529470884,-245.665668,0.00028998,7]
[343247791,1732529470894,-151.0,0.00028998,7]
[343247792,1732529470903,-151.0,0.00028998,7]
[343247793,1732529470913,-151.0,0.00028998,7]
[343247794,1732529470922,-151.0,0.00028998,7]
[343247795,1732529470932,-151.0,0.00028998,7]
[343247796,1732529470941,-151.0,0.00028998,7]
[343247797,1732529470951,-162.27067,0.00028998,7]
[343247798,1732529470960,-151.0,0.00028998,7]
[343247799,1732529470969,-151.0,0.00028998,7]
[343247800,1732529470979,-151.0,0.00028998,7]
[343247801,1732529470988,-151.0,0.00028998,7]
[343247802,1732529470997,-151.0,0.00028998,7]
[343247803,1732529471007,-151.0,0.00028998,7]
[343247804,1732529471017,-151.0,0.00028998,7]
[343247805,1732529471026,-151.0,0.00028998,7]
[343247806,1732529471035,-151.0,0.00028998,7]
[343247807,1732529471044,-151.0,0.00028998,7]
[343247808,1732529471054,-151.0,0.00028998,7]
[343247809,1732529471064,-301.785452,0.00028998,7]
[343247810,1732529471074,-175.290341,0.00028998,7]
[343247811,1732529471084,-519.539038,0.00028998,7]
[343247812,1732529471097,-175.290341,0.00028998,7]
[343247813,1732529471107,-519.539038,0.00028998,7]
[343247814,1732529471119,-410.635507,0.00028998,7]
[343247815,1732529471129,-276.190362,0.00028998,7]
[343247816,1732529471139,-276.190362,0.00028998,7]
[343247817,1732529471149,-151.0,0.00028998,7]
[343247818,1732529471159,-151.0,0.00028998,7]
[343247819,1732529471168,-861.34705681,0.00029,2]
[343247820,1732529471178,-2522.90613186,0.00029,120]
[343247821,1732529471187,-500.0,0.00029,5]
[343247822,1732529471197,-500.0,0.00029,120]
[343247823,1732529471206,-500.0,0.00029,120]
[343247824,1732529471216,-500.0,0.00029,120]
[343247825,1732529471225,-500.0,0.00029,120]
[343247826,1732529471234,-500.0,0.00029,120]
[343247827,1732529471244,-554.88147211,0.00029,120]
[343247828,1732529471253,-300.0,0.0002905,10]
[343247829,1732529471263,-500.0,0.0002905,10]
[343247830,1732529471273,-500.0,0.0002905,10]
[343247831,1732529471282,-586.29763419,0.0002905,10]
[343247832,1732529471291,-202.19751318,0.0002905,10]
[343247833,1732529471300,-500.0,0.0002905,10]
[343247834,1732529471311,-500.0,0.0002905,10]
[343247835,1732529471320,-151.0,0.0002905,7]
[343247836,1732529471329,-593.809327,0.0002905,7]
[343247837,1732529471338,-593.809327,0.0002905,7]
[343247838,1732529471348,-1565.63424359,0.00029152,2]
[343247839,1732529471357,-546.46508569,0.00029152,2]
[343247840,1732529471369,-175.290341,0.00029226,7]
[343247841,1732529471378,-175.290341,0.00029226,7]
[343247842,1732529471388,-175.290341,0.00029226,7]
[343247843,1732529471398,-175.290341,0.00029226,7]
[343247844,1732529471408,-175.290341,0.00029226,7]
[343247845,1732529471418,-519.539038,0.00029226,7]
[343247846,1732529471428,-175.290341,0.00029226,7]
[343247847,1732529471438,-519.539038,0.00029226,7]
[343247848,1732529471448,-175.290341,0.00029226,7]
[343247849,1732529471457,-519.539038,0.00029226,7]
[343247850,1732529471466,-519.539038,0.00029226,7]
[343247851,1732529471477,-519.539038,0.00029226,7]
[343247852,1732529471487,-175.290341,0.00029226,7]
[343247853,1732529471496,-175.290341,0.00029226,7]
[343247854,1732529471506,-519.539038,0.00029226,7]
[343247855,1732529471515,-175.290341,0.00029226,7]
[343247856,1732529471524,-519.539038,0.00029226,7]
[343247857,1732529471534,-175.290341,0.00029226,7]
[343247858,1732529471543,-175.290341,0.00029226,7]
[343247859,1732529471553,-175.290341,0.00029226,7]
[343247860,1732529471563,-519.539038,0.00029226,7]
[343247861,1732529471573,-175.290333,0.00029226,7]
[343247862,1732529471583,-519.539038,0.00029226,7]
[343247863,1732529471592,-519.539038,0.00029226,7]
[343247864,1732529471602,-519.539038,0.00029226,7]
[343247865,1732529471612,-519.539038,0.00029226,7]
[343247866,1732529471626,-519.539038,0.00029226,7]
[343247867,1732529471636,-519.539033,0.00029226,7]
[343247868,1732529471645,-410.635507,0.00029226,7]
[343247869,1732529471655,-410.635507,0.00029226,7]
[343247870,1732529471664,-410.635507,0.00029226,7]
[343247871,1732529471675,-410.635507,0.00029226,7]
[343247872,1732529471684,-410.635507,0.00029226,7]
[343247873,1732529471694,-410.635507,0.00029226,7]
[343247874,1732529471703,-410.635507,0.00029226,7]
[343247875,1732529471714,-410.635507,0.00029226,7]
[343247876,1732529471771,-410.635507,0.00029226,7]
[343247877,1732529471781,-410.635507,0.00029226,7]
[343247878,1732529471790,-410.635507,0.00029226,7]
[343247879,1732529471799,-410.635507,0.00029226,7]
[343247880,1732529471808,-410.635507,0.00029226,7]
[343247881,1732529471818,-410.635512,0.00029226,7]
[343247882,1732529471830,-276.190362,0.00029226,7]
[343247883,1732529471839,-276.190362,0.00029226,7]
[343247884,1732529471849,-276.190362,0.00029226,7]
[343247885,1732529471858,-276.190362,0.00029226,7]
[343247886,1732529471870,-276.190362,0.00029226,7]
[343247887,1732529471880,-276.190362,0.00029226,7]
[343247888,1732529471890,-276.190362,0.00029226,7]
[343247889,1732529471899,-276.190362,0.00029226,7]
[343247890,1732529471908,-276.190362,0.00029226,7]
[343247891,1732529471917,-276.190362,0.00029226,7]
[343247892,1732529471927,-276.190362,0.00029226,7]
[343247893,1732529471937,-276.190362,0.00029226,7]
[343247894,1732529471946,-276.190362,0.00029226,7]
[343247895,1732529471955,-276.190354,0.00029226,7]
[343247896,1732529471965,-151.0,0.00029226,7]
[343247897,1732529471974,-151.0,0.00029226,7]
[343247898,1732529471984,-151.0,0.00029226,7]
[343247899,1732529471993,-151.0,0.00029226,7]
[343247900,1732529472003,-151.0,0.00029226,7]
[343247901,1732529472013,-151.0,0.00029226,7]
[343247902,1732529472023,-151.0,0.00029226,7]
[343247903,1732529472033,-151.0,0.00029226,7]
[343247904,1732529472043,-151.0,0.00029226,7]
[343247905,1732529472052,-151.0,0.00029226,7]
[343247906,1732529472062,-151.0,0.00029226,7]
[343247907,1732529472072,-151.0,0.00029226,7]
[343247908,1732529472085,-153.724728,0.00029226,7]
[343247909,1732529472099,-151.0,0.00029226,7]
[343247910,1732529472109,-178.477896,0.00029226,7]
[343247911,1732529472120,-151.975445,0.00029226,7]
[343247912,1732529472129,-151.0,0.00029226,7]
[343247913,1732529472139,-151.0,0.00029226,7]
[343247914,1732529472149,-210.763376,0.00029226,7]
[343247915,1732529472158,-210.763376,0.00029226,7]
[343247916,1732529472168,-2312.76906896,0.00029251,2]
[343247917,1732529472178,-2312.76906896,0.00029251,2]
[343247918,1732529472188,-1974577.58337886,0.00029252,10]
[343247951,1732530013948,631.41078443,0.00016,5]
[343247957,1732530153765,1317.0,0.00028,30]
[343248017,1732530404992,-158.714919,0.00013973,2]
[343248018,1732530421379,4500.0,0.00028,30]
[343248027,1732530516196,179130.78320884,0.00028,30]
[343248028,1732530521628,998.32700089,0.0001,2]
[343248029,1732530525775,674.49902111,0.000109,2]
[343248056,1732530636323,-300.0,0.00019989,2]
[343248057,1732530636332,-300.0,0.00019989,2]
[343248058,1732530636341,-4318.26262161,0.0001999,2]
[343248059,1732530636436,-11048.103337,0.0001999,2]
[343248060,1732530636445,-500.47876774,0.00019999,2]
[343248061,1732530636455,-1007.82326194,0.0002,2]
[343248062,1732530636464,-247.50622911,0.00020377,2]
[343248063,1732530636475,-61224.03703696,0.00020377,2]
[343248064,1732530636485,-997.96447853,0.00020451,2]
[343248065,1732530636494,-644.54267237,0.00020551,15]
[343248066,1732530636504,-883.99032406,0.0002066,7]
[343248067,1732530636514,-158.714919,0.00021209,2]
[343248068,1732530636527,-997.96447848,0.00021689,2]
[343248069,1732530636536,-2927.0,0.0002187,2]
[343248070,1732530636545,-455.84,0.0002199,3]
[343248071,1732530636554,-161.0,0.00022,2]
[343248072,1732530636563,-25653.37061384,0.00022,2]
[343248073,1732530636573,-160.82460151,0.00022,10]
[343248074,1732530636582,-814.91838228,0.00022,3]
[343248075,1732530636592,-271.88961863,0.0002201,16]
[343248076,1732530636601,-997.96447848,0.00022926,2]
[343248077,1732530636610,-166.552129,0.0002308,2]
[343248078,1732530636619,-997.96447848,0.00024164,2]
[343248079,1732530636628,-500.0,0.00024999,2]
[343248080,1732530636638,-192.5117662,0.00024999,2]
[343248081,1732530636647,-166.66041974,0.00024999,2]
[343248082,1732530636656,-165.18308121,0.00024999,2]
[343248083,1732530636665,-176.08302832,0.00024999,2]
[343248084,1732530636675,-500.0,0.00024999,2]
[343248085,1732530636684,-135388.74960287,0.00025,7]
[343248086,1732530636693,-7818.5025214,0.00025,2]
[343248087,1732530636702,-192.9702782,0.00025316,2]
[343248088,1732530636711,-997.96447848,0.00025401,2]
[343248089,1732530636721,-500.0,0.00025416,7]
[343248090,1732530636730,-500.0,0.00026219,2]
[343248091,1732530636739,-500.0,0.00026219,2]
[343248092,1732530636749,-24900.0,0.0002622,2]
[343248093,1732530636758,-7458.94652043,0.0002649,2]
[343248094,1732530636769,-500.0,0.00026493,2]
[343248095,1732530636778,-500.0,0.00026493,2]
[343248096,1732530636788,-531.0,0.00026697,2]
[343248097,1732530636797,-2379.0,0.00026697,2]
[343248098,1732530636807,-1105.0,0.00026697,2]
[343248099,1732530636816,-500.0,0.00026767,2]
[343248100,1732530636826,-500.0,0.00026767,2]
[343248101,1732530636835,-500.0,0.00027041,2]
[343248102,1732530636844,-500.0,0.00027041,2]
[343248103,1732530636853,-500.0,0.0002706,7]
[343248104,1732530636863,-192.97027818,0.00027213,2]